[Event "*** Titled Tuesday Blitz"]
[Site "Chess.com"]
[Date "2020.04.07"]
[Round "2"]
[White "ftorodent"]
[Black "Cocaino74"]
[Result "1-0"]
[WhiteElo "2501"]
[BlackElo "2239"]
[TimeControl "180+1"]
[EndTime "13:18:31 PDT"]
[Termination "ftorodent won by resignation"]

1. d4 {[%clk 0:03:00.9]} 1... d5 {[%clk 0:02:59]} 2. c4 {[%clk 0:03:00.4]} 2...
e6 {[%clk 0:02:59.4]} 3. Nf3 {[%clk 0:03:00.1]} 3... c6 {[%clk 0:02:59.9]} 4.
Bg5 {[%clk 0:02:58.2]} 4... Be7 {[%clk 0:02:48.7]} 5. Bxe7 {[%clk 0:02:56.7]}
5... Nxe7 {[%clk 0:02:49.6]} 6. e3 {[%clk 0:02:56.9]} 6... Nd7 {[%clk
0:02:40.9]} 7. Nc3 {[%clk 0:02:56.1]} 7... O-O {[%clk 0:02:40.3]} 8. Bd3 {[%clk
0:02:55.8]} 8... dxc4 {[%clk 0:02:39.9]} 9. Bxc4 {[%clk 0:02:55.6]} 9... b5
{[%clk 0:02:40.5]} 10. Bd3 {[%clk 0:02:53.7]} 10... a6 {[%clk 0:02:32.9]} 11.
Qc2 {[%clk 0:02:47.1]} 11... h6 {[%clk 0:02:26]} 12. Ne4 {[%clk 0:02:45.9]}
12... Qa5+ {[%clk 0:02:16.7]} 13. Qd2 {[%clk 0:02:44.9]} 13... Qxd2+ {[%clk
0:02:15.5]} 14. Kxd2 {[%clk 0:02:40.9]} 14... Rd8 {[%clk 0:02:09]} 15. Rhc1
{[%clk 0:02:38.5]} 15... a5 {[%clk 0:01:50.5]} 16. Nc5 {[%clk 0:02:28.7]} 16...
Nxc5 {[%clk 0:01:47.3]} 17. Rxc5 {[%clk 0:02:28.3]} 17... Rd5 {[%clk 0:01:41.2]}
18. Rac1 {[%clk 0:02:19.6]} 18... Bd7 {[%clk 0:01:35.7]} 19. Be4 {[%clk
0:02:09]} 19... Rxc5 {[%clk 0:01:35.2]} 20. Rxc5 {[%clk 0:02:08.9]} 20... f6
{[%clk 0:01:31.3]} 21. Ne1 {[%clk 0:02:04.1]} 21... f5 {[%clk 0:01:17.1]} 22.
Bf3 {[%clk 0:02:02.4]} 22... g5 {[%clk 0:01:16.3]} 23. g3 {[%clk 0:01:58.4]}
23... a4 {[%clk 0:00:50.7]} 24. Rxb5 {[%clk 0:01:50.1]} 24... cxb5 {[%clk
0:00:48.2]} 25. Bxa8 {[%clk 0:01:48.9]} 25... Bc6 {[%clk 0:00:36.6]} 26. Bxc6
{[%clk 0:01:48.2]} 26... Nxc6 {[%clk 0:00:37.5]} 27. Nd3 {[%clk 0:01:48.2]}
27... Kg7 {[%clk 0:00:30.3]} 28. Ne5 {[%clk 0:01:41.4]} 28... Nb4 {[%clk
0:00:25.5]} 29. a3 {[%clk 0:01:34.3]} 29... Nd5 {[%clk 0:00:26]} 30. Nc6 {[%clk
0:01:30.2]} 30... Kf6 {[%clk 0:00:18.6]} 31. f3 {[%clk 0:01:29.3]} 31... g4
{[%clk 0:00:14]} 32. fxg4 {[%clk 0:01:21.7]} 32... fxg4 {[%clk 0:00:14.1]} 33.
e4 {[%clk 0:01:21.6]} 33... Nc7 {[%clk 0:00:14]} 34. Kc3 {[%clk 0:01:17.7]}
34... Na6 {[%clk 0:00:06.7]} 35. Na7 {[%clk 0:01:14.7]} 1-0

[Event "*** Titled Tuesday Blitz"]
[Site "Chess.com"]
[Date "2020.04.07"]
[Round "2"]
[White "IMRosen"]
[Black "annamaja"]
[Result "0-1"]
[WhiteElo "2465"]
[BlackElo "2265"]
[TimeControl "180+1"]
[EndTime "13:18:33 PDT"]
[Termination "annamaja won on time"]

1. d4 {[%clk 0:03:00.9]} 1... Nf6 {[%clk 0:02:59.3]} 2. Bf4 {[%clk 0:03:01.4]}
2... d5 {[%clk 0:02:58.5]} 3. e3 {[%clk 0:03:01.8]} 3... e6 {[%clk 0:02:56.3]}
4. Nd2 {[%clk 0:03:01.8]} 4... Bd6 {[%clk 0:02:55.2]} 5. Bg3 {[%clk 0:03:02.2]}
5... O-O {[%clk 0:02:54.4]} 6. Ngf3 {[%clk 0:02:59.6]} 6... c5 {[%clk
0:02:54.3]} 7. c3 {[%clk 0:02:59.8]} 7... Nc6 {[%clk 0:02:53.3]} 8. Bb5 {[%clk
0:02:59.4]} 8... Re8 {[%clk 0:02:43.9]} 9. Bxc6 {[%clk 0:02:59]} 9... bxc6
{[%clk 0:02:44.1]} 10. Qa4 {[%clk 0:02:59.3]} 10... Bxg3 {[%clk 0:02:26.3]} 11.
hxg3 {[%clk 0:02:55.4]} 11... Qb6 {[%clk 0:02:16.7]} 12. Qa3 {[%clk 0:02:39.6]}
12... Rb8 {[%clk 0:01:57.4]} 13. b3 {[%clk 0:02:34.7]} 13... cxd4 {[%clk
0:01:55.1]} 14. cxd4 {[%clk 0:02:34.9]} 14... Ba6 {[%clk 0:01:50.3]} 15. Rc1
{[%clk 0:02:31.9]} 15... Qb5 {[%clk 0:01:42.6]} 16. Ng1 {[%clk 0:02:15.3]} 16...
Ne4 {[%clk 0:01:35.8]} 17. Nxe4 {[%clk 0:01:11.2]} 17... Qf1+ {[%clk 0:01:30.2]}
18. Kd2 {[%clk 0:01:11.3]} 18... Qd3+ {[%clk 0:01:30]} 19. Ke1 {[%clk
0:01:09.2]} 19... dxe4 {[%clk 0:01:12.2]} 20. Rxc6 {[%clk 0:00:23.2]} 20... Qf1+
{[%clk 0:01:09.4]} 21. Kd2 {[%clk 0:00:22.1]} 21... Qxf2+ {[%clk 0:01:09.5]} 22.
Kd1 {[%clk 0:00:16.9]} 22... Qf1+ {[%clk 0:01:02.6]} 23. Kd2 {[%clk 0:00:12.3]}
23... Qxg2+ {[%clk 0:01:00.8]} 24. Kc3 {[%clk 0:00:08.6]} 24... Bd3 {[%clk
0:00:31.1]} 25. Qc1 {[%clk 0:00:01.4]} 25... Qxh1 {[%clk 0:00:29]} 0-1

[Event "*** Titled Tuesday Blitz"]
[Site "Chess.com"]
[Date "2020.04.07"]
[Round "2"]
[White "Zurability"]
[Black "Nastya_Rakhmangulova"]
[Result "0-1"]
[WhiteElo "2676"]
[BlackElo "2358"]
[TimeControl "180+1"]
[EndTime "13:18:36 PDT"]
[Termination "Nastya_Rakhmangulova won on time"]

1. d4 {[%clk 0:03:00.5]} 1... d5 {[%clk 0:02:59.5]} 2. c4 {[%clk 0:03:00.4]}
2... c6 {[%clk 0:02:59.2]} 3. Nf3 {[%clk 0:03:01]} 3... Nf6 {[%clk 0:02:59.4]}
4. Nc3 {[%clk 0:02:58.1]} 4... dxc4 {[%clk 0:02:59.9]} 5. a4 {[%clk 0:02:57.3]}
5... Bf5 {[%clk 0:03:00.4]} 6. Ne5 {[%clk 0:02:56.6]} 6... e6 {[%clk 0:03:01]}
7. f3 {[%clk 0:02:54.9]} 7... Bb4 {[%clk 0:03:01.4]} 8. Kf2 {[%clk 0:02:49.9]}
8... O-O {[%clk 0:02:59.8]} 9. Nxc4 {[%clk 0:02:45.6]} 9... e5 {[%clk
0:02:57.5]} 10. Nxe5 {[%clk 0:02:40.7]} 10... Bc2 {[%clk 0:02:56.4]} 11. Qd2
{[%clk 0:02:40.5]} 11... Bb3 {[%clk 0:02:54.3]} 12. e4 {[%clk 0:02:38.8]} 12...
c5 {[%clk 0:02:34.8]} 13. d5 {[%clk 0:02:30.1]} 13... c4 {[%clk 0:02:19.3]} 14.
Bxc4 {[%clk 0:02:10.5]} 14... Qb6+ {[%clk 0:01:55.4]} 15. Kf1 {[%clk 0:01:52.3]}
15... Bxc4+ {[%clk 0:01:43.2]} 16. Nxc4 {[%clk 0:01:52.1]} 16... Qa6 {[%clk
0:01:43.5]} 17. Qe2 {[%clk 0:01:47.6]} 17... Nbd7 {[%clk 0:01:40.2]} 18. Nb5
{[%clk 0:01:38.1]} 18... Rac8 {[%clk 0:01:36]} 19. Bf4 {[%clk 0:01:37.1]} 19...
Nh5 {[%clk 0:01:15.7]} 20. Bg3 {[%clk 0:01:05.8]} 20... Nxg3+ {[%clk 0:01:09.8]}
21. hxg3 {[%clk 0:01:06.7]} 21... Nc5 {[%clk 0:01:08.9]} 22. Ncd6 {[%clk
0:00:33.1]} 22... Rcd8 {[%clk 0:00:59.3]} 23. Nf5 {[%clk 0:00:31.1]} 23... Nb3
{[%clk 0:00:53.2]} 24. Rd1 {[%clk 0:00:28.9]} 24... Qxa4 {[%clk 0:00:50.4]} 25.
f4 {[%clk 0:00:19.2]} 25... Nd2+ {[%clk 0:00:48.3]} 26. Kf2 {[%clk 0:00:10.9]}
26... Bc5+ {[%clk 0:00:48.2]} 27. Ne3 {[%clk 0:00:08.3]} 27... Nxe4+ {[%clk
0:00:47.9]} 28. Kf3 {[%clk 0:00:08.9]} 28... Nf6 {[%clk 0:00:44.9]} 29. Nf5
{[%clk 0:00:05.1]} 29... Rfe8 {[%clk 0:00:40.8]} 30. Qd3 {[%clk 0:00:05]} 30...
Rxd5 {[%clk 0:00:37.9]} 0-1

[Event "*** Titled Tuesday Blitz"]
[Site "Chess.com"]
[Date "2020.04.07"]
[Round "2"]
[White "Vusatiuk_Vladimir"]
[Black "yawnpawn"]
[Result "1-0"]
[WhiteElo "2383"]
[BlackElo "1683"]
[TimeControl "180+1"]
[EndTime "13:18:37 PDT"]
[Termination "Vusatiuk_Vladimir won by resignation"]

1. e4 {[%clk 0:03:00.9]} 1... c5 {[%clk 0:02:59.2]} 2. Nf3 {[%clk 0:03:00.7]}
2... Nc6 {[%clk 0:02:59]} 3. Bb5 {[%clk 0:02:58.9]} 3... g6 {[%clk 0:02:58.4]}
4. Bxc6 {[%clk 0:02:58.1]} 4... bxc6 {[%clk 0:02:55.6]} 5. O-O {[%clk
0:02:56.4]} 5... Bg7 {[%clk 0:02:54.8]} 6. c3 {[%clk 0:02:55.2]} 6... d5 {[%clk
0:02:50]} 7. e5 {[%clk 0:02:41.8]} 7... Qc7 {[%clk 0:02:44.5]} 8. Re1 {[%clk
0:02:41.7]} 8... Bg4 {[%clk 0:02:41.8]} 9. d4 {[%clk 0:02:02.8]} 9... cxd4
{[%clk 0:02:41.1]} 10. cxd4 {[%clk 0:02:02.9]} 10... e6 {[%clk 0:02:36.1]} 11.
b3 {[%clk 0:01:59.6]} 11... Ne7 {[%clk 0:02:34.8]} 12. Ba3 {[%clk 0:02:00]}
12... O-O {[%clk 0:02:13.5]} 13. Nc3 {[%clk 0:01:58.3]} 13... Rfc8 {[%clk
0:02:01.5]} 14. Na4 {[%clk 0:01:53.7]} 14... Nf5 {[%clk 0:02:00.5]} 15. Bc5
{[%clk 0:01:45.2]} 15... Bf8 {[%clk 0:01:58.5]} 16. h3 {[%clk 0:01:11.2]} 16...
Bxf3 {[%clk 0:01:55.3]} 17. Qxf3 {[%clk 0:01:12.1]} 17... Bxc5 {[%clk
0:01:52.7]} 18. dxc5 {[%clk 0:01:13]} 18... Rab8 {[%clk 0:01:28.8]} 19. g4
{[%clk 0:01:11.9]} 19... Ng7 {[%clk 0:01:28]} 20. Nb2 {[%clk 0:00:57.5]} 20...
Qe7 {[%clk 0:01:24.8]} 21. Rac1 {[%clk 0:00:55.6]} 21... h5 {[%clk 0:01:19.9]}
22. Nd3 {[%clk 0:00:55]} 22... Kh7 {[%clk 0:00:44.7]} 23. Nf4 {[%clk 0:00:43.8]}
23... hxg4 {[%clk 0:00:33.4]} 24. hxg4 {[%clk 0:00:44.7]} 24... Rh8 {[%clk
0:00:32.6]} 25. Kg2 {[%clk 0:00:44.7]} 25... Ne8 {[%clk 0:00:16]} 26. Rh1+
{[%clk 0:00:35.7]} 26... Kg7 {[%clk 0:00:15.4]} 27. Rxh8 {[%clk 0:00:36.6]}
27... Kxh8 {[%clk 0:00:13.6]} 28. Rh1+ {[%clk 0:00:37.5]} 28... Kg7 {[%clk
0:00:09.6]} 29. Qh3 {[%clk 0:00:38.4]} 1-0

[Event "*** Titled Tuesday Blitz"]
[Site "Chess.com"]
[Date "2020.04.07"]
[Round "2"]
[White "Perecke"]
[Black "MathiasWomacka"]
[Result "0-1"]
[WhiteElo "2146"]
[BlackElo "2431"]
[TimeControl "180+1"]
[EndTime "13:18:39 PDT"]
[Termination "MathiasWomacka won by resignation"]

1. e4 {[%clk 0:03:00.9]} 1... c5 {[%clk 0:02:59.6]} 2. Nf3 {[%clk 0:02:52.4]}
2... d6 {[%clk 0:02:59.7]} 3. d4 {[%clk 0:02:51]} 3... cxd4 {[%clk 0:03:00.6]}
4. Nxd4 {[%clk 0:02:51.9]} 4... Nf6 {[%clk 0:03:00.5]} 5. Nc3 {[%clk 0:02:51.2]}
5... a6 {[%clk 0:03:01]} 6. h3 {[%clk 0:02:51.6]} 6... e6 {[%clk 0:02:59.5]} 7.
g4 {[%clk 0:02:51.6]} 7... b5 {[%clk 0:02:59.5]} 8. Bg2 {[%clk 0:02:51.6]} 8...
Bb7 {[%clk 0:02:59.5]} 9. O-O {[%clk 0:02:51.4]} 9... Nfd7 {[%clk 0:02:58.1]}
10. Be3 {[%clk 0:02:47.3]} 10... Nc6 {[%clk 0:02:54.2]} 11. f4 {[%clk
0:02:43.3]} 11... Be7 {[%clk 0:02:51.5]} 12. f5 {[%clk 0:02:17.3]} 12... Nxd4
{[%clk 0:02:49.7]} 13. Bxd4 {[%clk 0:02:16.8]} 13... O-O {[%clk 0:02:49.5]} 14.
b3 {[%clk 0:01:51.1]} 14... Rc8 {[%clk 0:02:45.4]} 15. Ne2 {[%clk 0:01:51]}
15... Bf6 {[%clk 0:02:17.1]} 16. Qd2 {[%clk 0:01:42.3]} 16... Bxd4+ {[%clk
0:02:01.5]} 17. Nxd4 {[%clk 0:01:41.6]} 17... Qe7 {[%clk 0:02:01.2]} 18. Rad1
{[%clk 0:00:54.4]} 18... h6 {[%clk 0:01:40.4]} 19. e5 {[%clk 0:00:10]} 19...
Nxe5 {[%clk 0:01:24.6]} 20. f6 {[%clk 0:00:07.4]} 20... gxf6 {[%clk 0:01:24.2]}
21. Qxh6 {[%clk 0:00:04.7]} 21... Bxg2 {[%clk 0:01:20.8]} 22. Kxg2 {[%clk
0:00:04.1]} 22... Ng6 {[%clk 0:01:09.7]} 23. Rde1 {[%clk 0:00:04.1]} 23... Rc3
{[%clk 0:01:02.9]} 24. Rf2 {[%clk 0:00:02.2]} 24... Rfc8 {[%clk 0:00:57.4]} 25.
Kh2 {[%clk 0:00:02]} 25... Qa7 {[%clk 0:00:47.1]} 26. Rd1 {[%clk 0:00:02.4]}
26... e5 {[%clk 0:00:41.3]} 27. Rxf6 {[%clk 0:00:02.1]} 27... exd4 {[%clk
0:00:39.8]} 28. Rxg6+ {[%clk 0:00:02.5]} 28... fxg6 {[%clk 0:00:39.7]} 29. Qxg6+
{[%clk 0:00:03.4]} 29... Qg7 {[%clk 0:00:38.7]} 30. Qe6+ {[%clk 0:00:04]} 30...
Qf7 {[%clk 0:00:37.4]} 0-1

[Event "*** Titled Tuesday Blitz"]
[Site "Chess.com"]
[Date "2020.04.07"]
[Round "2"]
[White "mattcolins2025"]
[Black "matiss90"]
[Result "0-1"]
[WhiteElo "2156"]
[BlackElo "2518"]
[TimeControl "180+1"]
[EndTime "13:18:40 PDT"]
[Termination "matiss90 won by resignation"]

1. d4 {[%clk 0:03:00.9]} 1... Nf6 {[%clk 0:02:59.2]} 2. c4 {[%clk 0:03:01.2]}
2... g6 {[%clk 0:02:59.3]} 3. Nc3 {[%clk 0:03:01.5]} 3... Bg7 {[%clk 0:02:59.4]}
4. e4 {[%clk 0:03:01.8]} 4... O-O {[%clk 0:03:00.2]} 5. Nf3 {[%clk 0:03:02]}
5... d6 {[%clk 0:03:00.1]} 6. Be2 {[%clk 0:03:02.3]} 6... Na6 {[%clk 0:02:59.5]}
7. O-O {[%clk 0:03:01.2]} 7... e5 {[%clk 0:02:59.5]} 8. d5 {[%clk 0:03:01.4]}
8... Nc5 {[%clk 0:02:59.5]} 9. Qc2 {[%clk 0:03:01.7]} 9... a5 {[%clk 0:02:59.6]}
10. Be3 {[%clk 0:03:01.1]} 10... Nh5 {[%clk 0:02:58.8]} 11. b3 {[%clk
0:02:54.7]} 11... Bd7 {[%clk 0:02:55.8]} 12. Nd2 {[%clk 0:02:53.8]} 12... Nf4
{[%clk 0:02:55]} 13. Rfe1 {[%clk 0:02:50.3]} 13... b6 {[%clk 0:02:53.1]} 14. a3
{[%clk 0:02:49.5]} 14... f5 {[%clk 0:02:43.6]} 15. f3 {[%clk 0:02:47.4]} 15...
Qg5 {[%clk 0:02:41.1]} 16. Bf1 {[%clk 0:02:45.4]} 16... Ncd3 {[%clk 0:02:12.5]}
17. Bxf4 {[%clk 0:02:30.4]} 17... Nxf4 {[%clk 0:02:06]} 18. Kh1 {[%clk
0:02:27.5]} 18... h5 {[%clk 0:02:05.6]} 19. g3 {[%clk 0:02:24.5]} 19... Bh6
{[%clk 0:01:48.5]} 20. gxf4 {[%clk 0:02:21.8]} 20... Qxf4 {[%clk 0:01:48.1]} 21.
Ra2 {[%clk 0:02:13.6]} 21... Kh7 {[%clk 0:01:44.5]} 22. Bg2 {[%clk 0:02:12]}
22... Qh4 {[%clk 0:01:42.9]} 23. Qd1 {[%clk 0:02:10]} 23... Bf4 {[%clk
0:01:42.2]} 24. Nf1 {[%clk 0:02:08]} 24... a4 {[%clk 0:01:25.6]} 25. b4 {[%clk
0:02:06.3]} 25... Rg8 {[%clk 0:01:19.8]} 26. Qe2 {[%clk 0:02:04.8]} 26... Raf8
{[%clk 0:01:14.9]} 27. Qf2 {[%clk 0:02:02.7]} 27... Qe7 {[%clk 0:01:07.1]} 28.
Ng3 {[%clk 0:01:57.8]} 28... fxe4 {[%clk 0:00:49.3]} 29. Ncxe4 {[%clk
0:01:54.8]} 29... h4 {[%clk 0:00:48.6]} 30. Ne2 {[%clk 0:01:52.1]} 30... h3
{[%clk 0:00:48.1]} 31. Nxf4 {[%clk 0:01:51.4]} 31... Rxf4 {[%clk 0:00:43.2]} 32.
Bf1 {[%clk 0:01:50.4]} 32... g5 {[%clk 0:00:43.5]} 33. Bd3 {[%clk 0:01:47.4]}
33... Kh8 {[%clk 0:00:43.4]} 34. Qg3 {[%clk 0:01:42]} 34... g4 {[%clk
0:00:37.6]} 35. fxg4 {[%clk 0:01:29.5]} 35... Bxg4 {[%clk 0:00:31.9]} 36. Rf2
{[%clk 0:01:19.5]} 36... Bf5 {[%clk 0:00:14.8]} 37. Qe3 {[%clk 0:01:06.4]} 37...
Qh4 {[%clk 0:00:14.2]} 38. Rxf4 {[%clk 0:01:01.2]} 38... exf4 {[%clk 0:00:14.2]}
39. Qf2 {[%clk 0:00:57.1]} 39... Bxe4+ {[%clk 0:00:13.2]} 40. Rxe4 {[%clk
0:00:54.8]} 40... Qxf2 {[%clk 0:00:12.6]} 0-1

[Event "*** Titled Tuesday Blitz"]
[Site "Chess.com"]
[Date "2020.04.07"]
[Round "2"]
[White "BasilSmash"]
[Black "PawnEatingZombie"]
[Result "1-0"]
[WhiteElo "2425"]
[BlackElo "2133"]
[TimeControl "180+1"]
[EndTime "13:18:40 PDT"]
[Termination "BasilSmash won on time"]

1. d4 {[%clk 0:03:00.9]} 1... d5 {[%clk 0:02:59.3]} 2. Nf3 {[%clk 0:03:00.9]}
2... e6 {[%clk 0:02:59.1]} 3. g3 {[%clk 0:03:01.2]} 3... b5 {[%clk 0:02:58.4]}
4. Bg2 {[%clk 0:03:00.9]} 4... Bb7 {[%clk 0:02:58.8]} 5. O-O {[%clk 0:03:00.3]}
5... Nf6 {[%clk 0:02:57.4]} 6. a4 {[%clk 0:03:00.2]} 6... b4 {[%clk 0:02:57]} 7.
c4 {[%clk 0:03:00.2]} 7... c5 {[%clk 0:02:57.2]} 8. Bg5 {[%clk 0:02:59.1]} 8...
Be7 {[%clk 0:02:46.4]} 9. dxc5 {[%clk 0:02:58.6]} 9... Nbd7 {[%clk 0:02:43.3]}
10. c6 {[%clk 0:02:57]} 10... Bxc6 {[%clk 0:02:42.5]} 11. Nd4 {[%clk 0:02:56]}
11... Bb7 {[%clk 0:02:35.4]} 12. cxd5 {[%clk 0:02:50.8]} 12... Nxd5 {[%clk
0:02:27.5]} 13. Bxe7 {[%clk 0:02:40.2]} 13... Qxe7 {[%clk 0:02:26.1]} 14. Nd2
{[%clk 0:02:35.1]} 14... O-O {[%clk 0:02:20.4]} 15. N2b3 {[%clk 0:02:30.8]}
15... Rac8 {[%clk 0:02:06.4]} 16. a5 {[%clk 0:02:30.2]} 16... Nc5 {[%clk
0:01:57.7]} 17. Rc1 {[%clk 0:02:14.5]} 17... Rfd8 {[%clk 0:01:30.2]} 18. Nxc5
{[%clk 0:02:01.9]} 18... Rxc5 {[%clk 0:01:29.5]} 19. Qa4 {[%clk 0:02:01.6]}
19... Qc7 {[%clk 0:01:06.7]} 20. Nb3 {[%clk 0:01:57.5]} 20... Rc4 {[%clk
0:00:52.8]} 21. Rfd1 {[%clk 0:01:39.4]} 21... Rc8 {[%clk 0:00:25.8]} 22. Rxc4
{[%clk 0:01:31.9]} 22... Qxc4 {[%clk 0:00:26.7]} 23. Rc1 {[%clk 0:01:30]} 23...
Qxc1+ {[%clk 0:00:23.2]} 24. Nxc1 {[%clk 0:01:30.9]} 24... Rxc1+ {[%clk
0:00:22.8]} 25. Bf1 {[%clk 0:01:31.4]} 25... g6 {[%clk 0:00:15.5]} 26. a6 {[%clk
0:01:11.1]} 26... Bc6 {[%clk 0:00:10.6]} 27. Qa5 {[%clk 0:01:09]} 27... Kg7
{[%clk 0:00:06.4]} 28. Qd8 {[%clk 0:01:01.2]} 28... Bb5 {[%clk 0:00:04.7]} 29.
Kg2 {[%clk 0:00:54.2]} 29... Bxa6 {[%clk 0:00:03.9]} 30. Qb8 {[%clk 0:00:39.2]}
30... Rc2 {[%clk 0:00:02.2]} 31. e4 {[%clk 0:00:29.7]} 1-0

[Event "*** Titled Tuesday Blitz"]
[Site "Chess.com"]
[Date "2020.04.07"]
[Round "2"]
[White "SimonKnightRivendell"]
[Black "Fenil1995"]
[Result "0-1"]
[WhiteElo "1905"]
[BlackElo "2397"]
[TimeControl "180+1"]
[EndTime "13:18:40 PDT"]
[Termination "Fenil1995 won on time"]

1. d4 {[%clk 0:03:00.9]} 1... d5 {[%clk 0:02:59.4]} 2. c4 {[%clk 0:03:00.5]}
2... e6 {[%clk 0:02:59.4]} 3. Nf3 {[%clk 0:03:00.4]} 3... c6 {[%clk 0:02:59.7]}
4. g3 {[%clk 0:03:00.3]} 4... dxc4 {[%clk 0:02:58.7]} 5. Ne5 {[%clk 0:02:58]}
5... b5 {[%clk 0:02:55.1]} 6. Bg2 {[%clk 0:02:55.5]} 6... Bb7 {[%clk 0:02:55.6]}
7. a4 {[%clk 0:02:54.4]} 7... a6 {[%clk 0:02:50.7]} 8. O-O {[%clk 0:02:50.9]}
8... Nf6 {[%clk 0:02:46.3]} 9. b3 {[%clk 0:02:48.4]} 9... cxb3 {[%clk
0:02:44.1]} 10. Qxb3 {[%clk 0:02:47.3]} 10... Qb6 {[%clk 0:02:41.9]} 11. a5
{[%clk 0:02:43.8]} 11... Qc7 {[%clk 0:02:40]} 12. Bf4 {[%clk 0:02:40.5]} 12...
Qc8 {[%clk 0:02:38.7]} 13. Rc1 {[%clk 0:02:27]} 13... Nd5 {[%clk 0:02:18.9]} 14.
Bxd5 {[%clk 0:02:10.5]} 14... exd5 {[%clk 0:02:19.8]} 15. Nd3 {[%clk 0:02:09.5]}
15... Nd7 {[%clk 0:02:17.8]} 16. Nd2 {[%clk 0:02:07.9]} 16... Be7 {[%clk
0:02:08.9]} 17. Nf3 {[%clk 0:02:07.6]} 17... O-O {[%clk 0:02:07.6]} 18. Nfe5
{[%clk 0:02:07.5]} 18... Nxe5 {[%clk 0:02:07.3]} 19. Bxe5 {[%clk 0:02:07.1]}
19... Qh3 {[%clk 0:02:05.8]} 20. Nc5 {[%clk 0:01:57.2]} 20... Bc8 {[%clk
0:02:05.4]} 21. Rc3 {[%clk 0:01:46.6]} 21... f6 {[%clk 0:01:56.9]} 22. Bf4
{[%clk 0:01:44.5]} 22... g5 {[%clk 0:01:52.1]} 23. Bd2 {[%clk 0:01:38.1]} 23...
f5 {[%clk 0:01:52.3]} 24. Nd3 {[%clk 0:01:34.4]} 24... Rf6 {[%clk 0:01:47.6]}
25. Ne5 {[%clk 0:01:33.7]} 25... Rh6 {[%clk 0:01:46.9]} 26. Nf3 {[%clk
0:01:27.6]} 26... g4 {[%clk 0:01:44.5]} 27. Bxh6 {[%clk 0:01:26.6]} 27... gxf3
{[%clk 0:01:43.6]} 28. exf3 {[%clk 0:01:23.8]} 28... Qxh6 {[%clk 0:01:43.6]} 29.
Rac1 {[%clk 0:01:23.9]} 29... Bd7 {[%clk 0:01:43.4]} 30. Qc2 {[%clk 0:01:20.9]}
30... Re8 {[%clk 0:01:35.7]} 31. f4 {[%clk 0:01:07.8]} 31... Bb4 {[%clk
0:01:31]} 32. Rb3 {[%clk 0:01:00.1]} 32... Bxa5 {[%clk 0:01:23.2]} 33. Ra3
{[%clk 0:00:59.9]} 33... Bb6 {[%clk 0:01:22.9]} 34. Rxa6 {[%clk 0:00:59.8]}
34... Bxd4 {[%clk 0:01:22.4]} 35. Qd3 {[%clk 0:00:37.8]} 35... Qf6 {[%clk
0:01:12.4]} 36. Qf3 {[%clk 0:00:20.7]} 36... b4 {[%clk 0:01:02.6]} 37. Rd1
{[%clk 0:00:18.5]} 37... Bc5 {[%clk 0:00:59]} 38. Rxd5 {[%clk 0:00:15.1]} 38...
Re1+ {[%clk 0:00:54.1]} 39. Kg2 {[%clk 0:00:14.5]} 39... Qe7 {[%clk 0:00:49.7]}
40. Ra8+ {[%clk 0:00:06]} 40... Kg7 {[%clk 0:00:48.8]} 0-1

[Event "*** Titled Tuesday Blitz"]
[Site "Chess.com"]
[Date "2020.04.07"]
[Round "2"]
[White "MishkaFighter"]
[Black "daro94"]
[Result "0-1"]
[WhiteElo "2567"]
[BlackElo "2859"]
[TimeControl "180+1"]
[EndTime "13:18:41 PDT"]
[Termination "daro94 won by resignation"]

1. d4 {[%clk 0:03:00.9]} 1... e6 {[%clk 0:02:51.5]} 2. c4 {[%clk 0:02:59.6]}
2... d5 {[%clk 0:02:50.7]} 3. Nf3 {[%clk 0:02:59.1]} 3... Nf6 {[%clk 0:02:46.7]}
4. Nc3 {[%clk 0:02:58.7]} 4... Nbd7 {[%clk 0:02:40.7]} 5. Bf4 {[%clk 0:02:55.2]}
5... Bb4 {[%clk 0:02:19.7]} 6. e3 {[%clk 0:02:55]} 6... O-O {[%clk 0:02:14.5]}
7. Qc2 {[%clk 0:02:49.5]} 7... c5 {[%clk 0:02:13.4]} 8. dxc5 {[%clk 0:02:29.5]}
8... Qa5 {[%clk 0:02:10.6]} 9. Be2 {[%clk 0:02:09.4]} 9... dxc4 {[%clk
0:02:09.7]} 10. O-O {[%clk 0:02:06.6]} 10... Bxc3 {[%clk 0:02:05.1]} 11. Qxc3
{[%clk 0:01:58.9]} 11... Qxc3 {[%clk 0:02:00.1]} 12. bxc3 {[%clk 0:01:59.8]}
12... Ne4 {[%clk 0:02:01]} 13. Bxc4 {[%clk 0:01:46.4]} 13... Ndxc5 {[%clk
0:02:00.2]} 14. Be5 {[%clk 0:01:38.4]} 14... b6 {[%clk 0:01:58.6]} 15. a4 {[%clk
0:01:26]} 15... Ba6 {[%clk 0:01:51]} 16. Bxa6 {[%clk 0:01:25.7]} 16... Nxa6
{[%clk 0:01:51.9]} 17. a5 {[%clk 0:01:26.6]} 17... f6 {[%clk 0:01:31.9]} 18.
axb6 {[%clk 0:01:23.9]} 18... axb6 {[%clk 0:01:31.7]} 19. Bd4 {[%clk 0:01:24.8]}
19... Nac5 {[%clk 0:01:21.4]} 20. Rab1 {[%clk 0:00:37.8]} 20... Na4 {[%clk
0:00:57.7]} 21. c4 {[%clk 0:00:28.6]} 21... Rfb8 {[%clk 0:00:49.2]} 22. Rfc1
{[%clk 0:00:17.1]} 22... e5 {[%clk 0:00:49.4]} 23. Bb2 {[%clk 0:00:15.9]} 23...
Rc8 {[%clk 0:00:45.8]} 24. Kf1 {[%clk 0:00:12.7]} 24... Nac5 {[%clk 0:00:33.5]}
25. Bc3 {[%clk 0:00:11.6]} 25... Nd3 {[%clk 0:00:30.6]} 26. Rc2 {[%clk
0:00:09.9]} 26... Rxc4 {[%clk 0:00:30.4]} 27. Ke2 {[%clk 0:00:09.9]} 27... Rxc3
{[%clk 0:00:25.9]} 28. Ra2 {[%clk 0:00:02.4]} 28... Rxa2+ {[%clk 0:00:25.3]} 0-1